[Event "Berliner Meisterschaft 2023"]
[Site "Berlin"]
[Date "2023.04.13"]
[Round "6.4"]
[White "Hesse, Henrik"]
[Black "Richter, Michael"]
[Result "1-0"]
[TimeControl "90 minutes / 40 moves + 30 minutes + 30 seconds"]
[BlackTitle "GM"]
[WhiteFideId "12956465"]
[BlackFideId "4618920"]
[WhiteElo "2197"]
[BlackElo "2465"]

1. c4 {[%clk 01:30:56]} {[%emt 00:00:03]} e5 {[%clk 01:30:27]} {[%emt
00:00:33]} 2. g3 {[%clk 01:31:21]} {[%emt 00:00:06]} c6 {[%clk 01:30:43]}
{[%emt 00:00:13]} 3. d4 {[%clk 01:30:57]} {[%emt 00:00:55]} e4 {[%clk
01:30:53]} {[%emt 00:00:19]} 4. d5 {[%clk 01:31:22]} {[%emt 00:00:05]} Bc5
{[%clk 01:23:48]} {[%emt 00:07:35]} 5. Nc3 {[%clk 01:22:29]} {[%emt 00:09:23]}
f5 {[%clk 01:16:49]} {[%emt 00:07:28]} 6. Na4 {[%clk 00:57:41]} {[%emt
00:25:20]} Bb4+ {[%clk 01:16:27]} {[%emt 00:00:51]} 7. Bd2 {[%clk 00:56:42]}
{[%emt 00:01:29]} Qe7 {[%clk 01:11:45]} {[%emt 00:05:12]} 8. a3 {[%clk
00:49:30]} {[%emt 00:07:42]} Bd6 {[%clk 01:12:08]} {[%emt 00:00:06]} 9. Nh3
{[%clk 00:39:03]} {[%emt 00:10:58]} Nf6 {[%clk 01:11:20]} {[%emt 00:01:17]} 10.
Bg2 {[%clk 00:38:45]} {[%emt 00:00:49]} cxd5 {[%clk 00:53:23]} {[%emt
00:18:27]} 11. cxd5 {[%clk 00:39:01]} {[%emt 00:00:14]} Nxd5 {[%clk 00:53:24]}
{[%emt 00:00:28]} 12. O-O {[%clk 00:31:38]} {[%emt 00:07:54]} Nc6 {[%clk
00:52:52]} {[%emt 00:01:02]} 13. f3 {[%clk 00:19:51]} {[%emt 00:12:17]} e3
{[%clk 00:52:56]} {[%emt 00:00:26]} 14. Bc1 {[%clk 00:19:50]} {[%emt 00:00:32]}
Nb6 {[%clk 00:52:44]} {[%emt 00:00:41]} 15. f4 {[%clk 00:17:11]} {[%emt
00:03:09]} Kd8 {[%clk 00:42:23]} {[%emt 00:10:51]} 16. b4 {[%clk 00:15:19]}
{[%emt 00:02:22]} Re8 {[%clk 00:35:16]} {[%emt 00:07:37]} 17. Nxb6 {[%clk
00:14:34]} {[%emt 00:01:15]} axb6 {[%clk 00:35:40]} {[%emt 00:00:06]} 18. Bb2
{[%clk 00:14:59]} {[%emt 00:00:05]} Bc7 {[%clk 00:32:47]} {[%emt 00:03:22]} 19.
Qd3 {[%clk 00:13:34]} {[%emt 00:01:56]} d6 {[%clk 00:32:49]} {[%emt 00:00:27]}
20. Rac1 {[%clk 00:12:34]} {[%emt 00:01:31]} Bd7 {[%clk 00:31:14]} {[%emt
00:02:05]} 21. Rc2 {[%clk 00:10:28]} {[%emt 00:02:37]} Rc8 {[%clk 00:27:24]}
{[%emt 00:04:19]} 22. b5 {[%clk 00:09:04]} {[%emt 00:01:54]} Na5 {[%clk
00:27:48]} {[%emt 00:00:05]} 23. Bd4 {[%clk 00:08:50]} {[%emt 00:00:44]} Be6
{[%clk 00:26:37]} {[%emt 00:01:41]} 24. Rc3 {[%clk 00:06:16]} {[%emt 00:03:04]}
h6 {[%clk 00:21:47]} {[%emt 00:05:20]} 25. Rfc1 {[%clk 00:06:35]} {[%emt
00:00:12]} Qf7 {[%clk 00:22:11]} {[%emt 00:00:06]} 26. Bxb6 {[%clk 00:02:08]}
{[%emt 00:04:57]} Nc4 {[%clk 00:22:00]} {[%emt 00:00:41]} 27. Rxc4 {[%clk
00:01:43]} {[%emt 00:00:55]} Bxc4 {[%clk 00:22:24]} {[%emt 00:00:05]} 28. Rxc4
{[%clk 00:02:07]} {[%emt 00:00:06]} Bxb6 {[%clk 00:20:08]} {[%emt 00:02:47]} 29.
Qxd6+ {[%clk 00:02:36]} {[%emt 00:00:01]} Qd7 {[%clk 00:20:30]} {[%emt
00:00:07]} 30. Qxb6+ {[%clk 00:03:04]} {[%emt 00:00:03]} Ke7 {[%clk 00:20:52]}
{[%emt 00:00:08]} 31. Rxc8 {[%clk 00:02:24]} Rxc8 {[%clk 00:20:09]} {[%emt
00:02:23]} 32. Qxe3+ {[%clk 00:02:50]} {[%emt 00:00:04]} Kf8 {[%clk 00:20:22]}
{[%emt 00:00:17]} 33. Nf2 {[%clk 00:02:21]} {[%emt 00:00:59]} Qxb5 {[%clk
00:20:17]} {[%emt 00:00:35]} 34. Nd3 {[%clk 00:01:59]} {[%emt 00:00:52]} Rc3
{[%clk 00:19:59]} {[%emt 00:00:49]} 35. Qe6 {[%clk 00:01:57]} {[%emt 00:00:32]}
Rb3 {[%clk 00:18:07]} {[%emt 00:02:21]} 36. Bd5 {[%clk 00:00:45]} {[%emt
00:01:43]} Qb6+ {[%clk 00:18:19]} {[%emt 00:00:18]} 37. Qxb6 {[%clk 00:01:08]}
{[%emt 00:00:07]} Rxb6 {[%clk 00:18:45]} {[%emt 00:00:04]} 38. a4 {[%clk
00:01:12]} {[%emt 00:00:26]} Rb1+ {[%clk 00:17:31]} {[%emt 00:01:44]} 39. Kf2
{[%clk 00:01:32]} {[%emt 00:00:10]} Ke7 {[%clk 00:17:55]} {[%emt 00:00:06]} 40.
Bc4 {[%clk 00:01:11]} {[%emt 00:00:51]} g5 {[%clk 00:17:27]} {[%emt 00:00:57]}
41. Bb5 {[%clk 00:29:51]} {[%emt 00:01:50]} g4 {[%clk 00:44:58]} {[%emt
00:02:59]} 42. Nc5 {[%clk 00:28:28]} {[%emt 00:01:54]} b6 {[%clk 00:45:15]}
{[%emt 00:00:13]} 43. Nd3 {[%clk 00:28:47]} {[%emt 00:00:11]} Kd6 {[%clk
00:42:04]} {[%emt 00:03:40]} 44. Ne5 {[%clk 00:28:57]} {[%emt 00:00:20]} Rh1
{[%clk 00:42:23]} {[%emt 00:00:11]} 45. Kg2 {[%clk 00:29:23]} {[%emt 00:00:04]}
Rb1 {[%emt 00:00:33]} 46. Nf7+ {[%clk 00:29:28]} Ke6 {[%clk 00:42:42]} {[%emt
00:00:33]} 47. Nxh6 {[%clk 00:27:13]} {[%emt 00:02:45]} Rb4 {[%clk 00:42:13]}
{[%emt 00:00:59]} 48. h3 {[%emt 00:07:18]} 1-0

[Event "Berliner Meisterschaft 2023"]
[Site "Berlin"]
[Date "2023.04.13"]
[Round "6.5"]
[White "Poltorak, Sebastian"]
[Black "Noetzel, Felix"]
[Result "1-0"]
[TimeControl "90 minutes / 40 moves + 30 minutes + 30 seconds"]
[WhiteTitle "FM"]
[WhiteFideId "1199498"]
[BlackFideId "24637416"]
[WhiteElo "2368"]
[BlackElo "2136"]

1. d4 {[%clk 01:30:56]} {[%emt 00:00:03]} d5 {[%clk 01:30:47]} {[%emt
00:00:13]} 2. c4 {[%clk 01:31:18]} {[%emt 00:00:08]} c6 {[%clk 01:31:03]}
{[%emt 00:00:13]} 3. Nc3 {[%clk 01:31:39]} {[%emt 00:00:09]} Nf6 {[%clk
01:31:23]} {[%emt 00:00:10]} 4. Nf3 {[%clk 01:32:02]} {[%emt 00:00:07]} e6
{[%clk 01:31:39]} {[%emt 00:00:15]} 5. Bg5 {[%clk 01:32:25]} {[%emt 00:00:06]}
h6 {[%clk 01:30:46]} {[%emt 00:01:22]} 6. Bxf6 {[%clk 01:32:31]} {[%emt
00:00:24]} Qxf6 {[%clk 01:31:07]} {[%emt 00:00:09]} 7. Qc2 {[%clk 01:31:51]}
{[%emt 00:01:10]} Nd7 {[%clk 01:25:53]} {[%emt 00:05:44]} 8. a3 {[%clk
01:26:03]} {[%emt 00:06:18]} dxc4 {[%clk 01:17:31]} {[%emt 00:08:52]} 9. e4
{[%clk 01:25:38]} {[%emt 00:00:55]} b5 {[%clk 01:17:55]} {[%emt 00:00:06]} 10.
d5 {[%clk 01:15:58]} {[%emt 00:10:11]} Bb7 {[%clk 01:08:17]} {[%emt 00:10:07]}
11. Be2 {[%clk 00:59:51]} {[%emt 00:16:36]} a6 {[%clk 00:46:12]} {[%emt
00:22:36]} 12. dxe6 {[%clk 00:51:36]} {[%emt 00:08:44]} fxe6 {[%clk 00:43:16]}
{[%emt 00:03:26]} 13. e5 {[%clk 00:45:31]} {[%emt 00:06:36]} Qf5 {[%clk
00:41:00]} {[%emt 00:02:45]} 14. Qxf5 {[%clk 00:45:49]} {[%emt 00:00:12]} exf5
{[%clk 00:41:28]} {[%emt 00:00:01]} 15. e6 {[%clk 00:45:46]} {[%emt 00:00:33]}
Nf6 {[%clk 00:18:50]} {[%emt 00:23:09]} 16. Nh4 {[%clk 00:41:49]} {[%emt
00:04:26]} Bc5 {[%clk 00:14:37]} {[%emt 00:04:43]} 17. Ng6 {[%clk 00:40:57]}
{[%emt 00:01:21]} Rg8 {[%clk 00:12:33]} {[%emt 00:02:34]} 18. Rd1 {[%clk
00:41:23]} {[%emt 00:00:05]} Nd5 {[%clk 00:09:10]} {[%emt 00:03:53]} 19. Bh5
{[%clk 00:38:34]} {[%emt 00:03:19]} O-O-O {[%clk 00:09:20]} {[%emt 00:00:20]}
20. Nxd5 {[%clk 00:36:27]} {[%emt 00:02:37]} cxd5 {[%clk 00:09:33]} {[%emt
00:00:17]} 21. Ne5 {[%clk 00:35:42]} {[%emt 00:01:15]} d4 {[%clk 00:06:49]}
{[%emt 00:03:14]} 22. O-O {[%clk 00:32:51]} {[%emt 00:03:21]} Bd5 {[%clk
00:03:25]} {[%emt 00:03:54]} 23. Bf7 {[%clk 00:32:58]} {[%emt 00:00:23]} Rge8
{[%clk 00:02:14]} {[%emt 00:01:41]} 24. Rfe1 {[%clk 00:29:30]} {[%emt
00:03:58]} Bxe6 {[%clk 00:02:29]} {[%emt 00:00:14]} 25. Bxe8 {[%clk 00:29:57]}
{[%emt 00:00:03]} Rxe8 {[%clk 00:02:56]} {[%emt 00:00:03]} 26. Nc6 {[%clk
00:11:16]} {[%emt 00:19:10]} d3 {[%clk 00:02:41]} {[%emt 00:00:45]} 27. Nb4
{[%clk 00:11:43]} {[%emt 00:00:04]} Kb7 {[%clk 00:01:59]} {[%emt 00:01:12]} 28.
Nxd3 {[%clk 00:09:02]} {[%emt 00:03:11]} cxd3 {[%clk 00:02:05]} {[%emt
00:00:24]} 29. Rxd3 {[%clk 00:09:29]} {[%emt 00:00:03]} Kc6 {[%clk 00:00:42]}
{[%emt 00:01:54]} 30. Rc3 {[%clk 00:09:22]} {[%emt 00:00:37]} Kb6 {[%clk
00:01:00]} {[%emt 00:00:12]} 31. b4 {[%clk 00:09:46]} {[%emt 00:00:06]} Bd4
{[%clk 00:00:44]} {[%emt 00:00:46]} 32. Rd3 {[%clk 00:09:57]} {[%emt 00:00:19]}
Bb2 {[%clk 00:00:45]} {[%emt 00:00:29]} 33. Rd6+ {[%clk 00:09:04]} {[%emt
00:01:22]} Kb7 {[%clk 00:01:14]} {[%emt 00:00:01]} 34. Rdxe6 {[%clk 00:09:21]}
{[%emt 00:00:13]} Rxe6 {[%clk 00:01:40]} {[%emt 00:00:04]} 35. Rxe6 {[%clk
00:09:47]} {[%emt 00:00:04]} Bxa3 {[%clk 00:02:08]} {[%emt 00:00:03]} 36. Re7+
{[%clk 00:09:49]} {[%emt 00:00:28]} Kb6 {[%clk 00:02:20]} {[%emt 00:00:18]} 37.
Rxg7 {[%clk 00:10:06]} {[%emt 00:00:12]} Bxb4 {[%clk 00:02:48]} {[%emt
00:00:03]} 38. Rg6+ {[%clk 00:10:32]} {[%emt 00:00:04]} Kb7 {[%clk 00:02:54]}
{[%emt 00:00:24]} 39. Kf1 {[%clk 00:10:29]} {[%emt 00:00:32]} a5 {[%clk
00:03:12]} {[%emt 00:00:13]} 40. Ke2 {[%clk 00:10:45]} {[%emt 00:00:14]} a4
{[%clk 00:03:29]} {[%emt 00:00:14]} 41. Kd3 {[%clk 00:10:41]} {[%emt 00:00:33]}
Be1 {[%clk 00:27:25]} {[%emt 00:06:33]} 42. f3 {[%clk 00:38:45]} {[%emt
00:02:26]} b4 {[%clk 00:25:29]} {[%emt 00:02:26]} 43. Re6 {[%clk 00:34:41]}
{[%emt 00:04:33]} Bf2 {[%clk 00:13:40]} {[%emt 00:12:19]} 44. Kc4 {[%clk
00:31:47]} {[%emt 00:03:25]} b3 {[%clk 00:14:05]} {[%emt 00:00:05]} 45. Kc3
{[%clk 00:28:57]} {[%emt 00:03:19]} Bb6 {[%clk 00:07:03]} {[%emt 00:07:33]} 46.
Re2 {[%clk 00:25:31]} {[%emt 00:03:56]} Bc5 {[%clk 00:05:29]} {[%emt 00:02:04]}
47. g4 {[%clk 00:22:42]} {[%emt 00:03:18]} fxg4 {[%clk 00:05:33]} {[%emt
00:00:26]} 48. fxg4 {[%clk 00:23:08]} {[%emt 00:00:04]} Kc6 {[%clk 00:04:58]}
{[%emt 00:01:06]} 49. Re4 {[%clk 00:21:18]} {[%emt 00:02:20]} Kb5 {[%clk
00:04:47]} {[%emt 00:00:41]} 50. Re5 {[%clk 00:20:36]} {[%emt 00:01:11]} Kb6
{[%clk 00:02:56]} {[%emt 00:02:21]} 51. Re8 {[%clk 00:19:17]} {[%emt 00:01:48]}
Bd6 {[%clk 00:01:15]} {[%emt 00:02:12]} 52. h4 {[%clk 00:18:41]} {[%emt
00:01:06]} Kb5 {[%clk 00:01:40]} {[%emt 00:00:05]} 53. g5 {[%clk 00:18:06]}
{[%emt 00:01:04]} hxg5 {[%clk 00:02:06]} {[%emt 00:00:03]} 54. hxg5 {[%clk
00:18:33]} {[%emt 00:00:04]} Bb4+ {[%clk 00:02:10]} {[%emt 00:00:26]} 55. Kb2
{[%clk 00:18:58]} {[%emt 00:00:05]} Bc5 {[%clk 00:02:11]} {[%emt 00:00:30]} 56.
Re5 {[%clk 00:18:05]} {[%emt 00:01:23]} Kc4 {[%clk 00:02:10]} {[%emt 00:00:31]}
57. Rxc5+ {[%clk 00:18:26]} {[%emt 00:00:09]} 1-0

[Event "Berliner Meisterschaft 2023"]
[Site "Berlin"]
[Date "2023.04.13"]
[Round "6.6"]
[White "Haug, Havard"]
[Black "Glantz, Robert"]
[Result "1/2-1/2"]
[TimeControl "90 minutes / 40 moves + 30 minutes + 30 seconds"]
[BlackTitle "FM"]
[WhiteFideId "1547887"]
[BlackFideId "24629596"]
[WhiteElo "2090"]
[BlackElo "2360"]

1. e4 {[%clk 01:30:56]} {[%emt 00:00:04]} c5 {[%clk 01:30:55]} {[%emt
00:00:06]} 2. c3 {[%clk 01:31:19]} {[%emt 00:00:07]} Nf6 {[%clk 01:31:11]}
{[%emt 00:00:13]} 3. e5 {[%clk 01:31:43]} {[%emt 00:00:07]} Nd5 {[%clk
01:31:35]} {[%emt 00:00:05]} 4. Nf3 {[%clk 01:32:08]} {[%emt 00:00:03]} e6
{[%clk 01:31:41]} {[%emt 00:00:25]} 5. d4 {[%clk 01:32:32]} {[%emt 00:00:07]}
cxd4 {[%clk 01:31:57]} {[%emt 00:00:15]} 6. cxd4 {[%clk 01:32:44]} {[%emt
00:00:18]} d6 {[%clk 01:32:08]} {[%emt 00:00:19]} 7. Bc4 {[%clk 01:33:05]}
{[%emt 00:00:09]} Be7 {[%clk 01:32:13]} {[%emt 00:00:24]} 8. Qe2 {[%clk
01:33:16]} {[%emt 00:00:16]} O-O {[%clk 01:32:05]} {[%emt 00:00:41]} 9. O-O
{[%clk 01:33:39]} {[%emt 00:00:08]} dxe5 {[%clk 01:31:51]} {[%emt 00:00:45]} 10.
dxe5 {[%clk 01:33:16]} {[%emt 00:00:53]} Bd7 {[%clk 01:32:14]} {[%emt
00:00:06]} 11. Rd1 {[%clk 01:30:47]} {[%emt 00:02:58]} Bc6 {[%clk 01:32:14]}
{[%emt 00:00:31]} 12. Bxd5 {[%clk 01:29:41]} {[%emt 00:01:36]} Bxd5 {[%clk
01:32:37]} {[%emt 00:00:06]} 13. Nc3 {[%clk 01:30:06]} {[%emt 00:00:05]} Bxf3
{[%clk 01:32:28]} {[%emt 00:00:39]} 14. Qxf3 {[%emt 00:00:45]} Qb6 {[%clk
01:32:17]} 15. Ne4 {[%clk 01:25:05]} {[%emt 00:05:58]} Nc6 {[%clk 01:32:15]}
{[%emt 00:00:31]} 16. Nf6+ {[%clk 01:23:07]} {[%emt 00:02:28]} Bxf6 {[%clk
01:32:07]} {[%emt 00:00:38]} 17. exf6 {[%clk 01:23:29]} {[%emt 00:00:08]} Rfd8
{[%clk 01:31:16]} {[%emt 00:01:20]} 18. Bh6 {[%clk 01:13:04]} {[%emt 00:10:55]}
g6 {[%clk 01:30:59]} {[%emt 00:00:46]} 19. b3 {[%clk 01:10:05]} {[%emt
00:03:31]} Nd4 {[%clk 01:04:15]} {[%emt 00:27:13]} 20. Qe4 {[%clk 01:08:25]}
{[%emt 00:02:10]} Nf5 {[%clk 00:44:23]} {[%emt 00:20:23]} 21. Be3 {[%clk
01:07:05]} {[%emt 00:01:51]} Rxd1+ {[%clk 00:42:29]} {[%emt 00:02:24]} 22. Rxd1
{[%clk 01:07:21]} {[%emt 00:00:14]} Rd8 {[%clk 00:42:35]} {[%emt 00:00:24]} 23.
Rc1 {[%clk 01:06:20]} {[%emt 00:01:30]} Qd6 {[%clk 00:37:15]} {[%emt 00:05:51]}
24. h3 {[%clk 01:03:41]} {[%emt 00:03:10]} b6 {[%clk 00:19:03]} {[%emt
00:18:41]} 25. Qc6 {[%clk 00:59:54]} {[%emt 00:04:18]} Qe5 {[%clk 00:16:16]}
{[%emt 00:03:16]} 26. Qc3 {[%clk 00:59:08]} {[%emt 00:01:15]} Qd5 {[%clk
00:15:16]} {[%emt 00:01:30]} 27. Rc2 {[%clk 00:58:01]} {[%emt 00:01:37]} e5
{[%clk 00:13:42]} {[%emt 00:02:05]} 28. Rd2 {[%clk 00:55:57]} {[%emt 00:02:35]}
Nd4 {[%emt 00:01:34]} 29. f4 {[%clk 00:55:00]} Qe4 {[%clk 00:10:08]} {[%emt
00:04:26]} 30. fxe5 {[%clk 00:53:08]} {[%emt 00:02:23]} Ne6 {[%clk 00:10:21]}
{[%emt 00:00:17]} 31. Rxd8+ {[%clk 00:49:29]} {[%emt 00:04:09]} Nxd8 {[%clk
00:10:50]} {[%emt 00:00:01]} 32. b4 {[%clk 00:43:20]} {[%emt 00:06:39]} Nc6
{[%clk 00:08:18]} {[%emt 00:03:01]} 33. b5 {[%clk 00:42:37]} {[%emt 00:01:14]}
Qb1+ {[%clk 00:07:31]} {[%emt 00:01:16]} 34. Kh2 {[%clk 00:42:51]} {[%emt
00:00:16]} Qxb5 {[%clk 00:07:52]} {[%emt 00:00:09]} 35. Bf4 {[%clk 00:43:07]}
{[%emt 00:00:14]} Qd5 {[%clk 00:06:54]} {[%emt 00:01:28]} 36. Qa3 {[%clk
00:41:20]} {[%emt 00:02:17]} a5 {[%clk 00:04:00]} {[%emt 00:03:23]} 37. Qe3
{[%clk 00:33:30]} {[%emt 00:08:21]} Qc5 {[%clk 00:00:42]} {[%emt 00:03:48]} 38.
Qe4 {[%clk 00:32:28]} {[%emt 00:01:32]} Qd4 {[%clk 00:00:35]} {[%emt 00:00:36]}
39. Qxc6 {[%clk 00:23:41]} {[%emt 00:09:18]} Qxf4+ {[%clk 00:00:47]} {[%emt
00:00:18]} 40. Kh1 {[%clk 00:24:03]} {[%emt 00:00:09]} Qf1+ {[%clk 00:00:54]}
{[%emt 00:00:23]} 41. Kh2 {[%clk 00:24:26]} {[%emt 00:00:07]} Qf4+ {[%clk
00:00:38]} {[%emt 00:00:46]} 42. g3 {[%clk 00:20:29]} {[%emt 00:04:27]} Qd2+
{[%clk 00:26:42]} {[%emt 00:04:25]} 43. Qg2 {[%clk 00:50:42]} {[%emt 00:00:18]}
Qd8 {[%clk 00:24:26]} {[%emt 00:02:45]} 44. a4 {[%clk 00:49:03]} {[%emt
00:02:10]} h5 {[%clk 00:23:28]} {[%emt 00:01:28]} 45. Qe4 {[%clk 00:46:43]}
{[%emt 00:02:51]} Qd2+ {[%clk 00:22:00]} {[%emt 00:01:58]} 46. Kg1 {[%clk
00:46:17]} {[%emt 00:00:56]} Qb4 {[%clk 00:18:49]} {[%emt 00:03:41]} 47. Qa8+
{[%clk 00:44:20]} {[%emt 00:02:28]} Kh7 {[%clk 00:19:07]} {[%emt 00:00:10]} 48.
Qe8 {[%clk 00:44:46]} {[%emt 00:00:06]} Qe1+ {[%clk 00:17:16]} {[%emt
00:02:21]} 49. Kg2 {[%clk 00:45:09]} {[%emt 00:00:07]} Qe2+ {[%clk 00:17:27]}
{[%emt 00:00:19]} 50. Kg1 {[%clk 00:45:31]} {[%emt 00:00:08]} Qe1+ {[%clk
00:17:29]} {[%emt 00:00:28]} 1/2-1/2

[Event "Berliner Meisterschaft 2023"]
[Site "Berlin"]
[Date "2023.04.13"]
[Round "6.7"]
[White "Schliebener, Stephan"]
[Black "Lagunow, Alexander"]
[Result "0-1"]
[TimeControl "90 minutes / 40 moves + 30 minutes + 30 seconds"]
[BlackTitle "IM"]
[WhiteFideId "4621662"]
[BlackFideId "4616049"]
[WhiteElo "2080"]
[BlackElo "2341"]

1. d4 {[%clk 01:30:58]} {[%emt 00:00:01]} d5 {[%clk 01:22:13]} {[%emt
00:08:47]} 2. c4 {[%clk 01:30:45]} {[%emt 00:00:43]} e6 {[%clk 01:22:31]}
{[%emt 00:00:12]} 3. Nc3 {[%clk 01:31:10]} {[%emt 00:00:05]} c5 {[%clk
01:22:56]} {[%emt 00:00:05]} 4. cxd5 {[%clk 01:30:16]} {[%emt 00:01:24]} cxd4
{[%clk 01:21:46]} {[%emt 00:01:39]} 5. Qa4+ {[%clk 01:30:07]} {[%emt 00:00:39]}
Bd7 {[%clk 01:22:10]} {[%emt 00:00:07]} 6. Qxd4 {[%clk 01:30:32]} {[%emt
00:00:05]} exd5 {[%clk 01:22:34]} {[%emt 00:00:06]} 7. Nf3 {[%clk 01:27:14]}
{[%emt 00:03:47]} Be6 {[%clk 01:13:46]} {[%emt 00:09:19]} 8. Be3 {[%clk
01:24:36]} {[%emt 00:03:08]} Nc6 {[%clk 01:13:34]} {[%emt 00:00:42]} 9. Qa4
{[%clk 01:22:29]} {[%emt 00:02:37]} Nge7 {[%clk 00:59:58]} {[%emt 00:14:07]} 10.
Nd4 {[%clk 01:11:19]} {[%emt 00:11:40]} g6 {[%clk 00:56:56]} {[%emt 00:03:31]}
11. Nxe6 {[%clk 01:03:01]} {[%emt 00:08:48]} fxe6 {[%clk 00:57:12]} {[%emt
00:00:14]} 12. Bd4 {[%clk 01:03:24]} {[%emt 00:00:07]} Rg8 {[%clk 00:57:17]}
{[%emt 00:00:25]} 13. e3 {[%clk 00:59:26]} {[%emt 00:04:28]} Kf7 {[%clk
00:50:33]} {[%emt 00:07:14]} 14. Bc5 {[%clk 00:56:59]} {[%emt 00:02:57]} Bg7
{[%clk 00:48:14]} {[%emt 00:02:49]} 15. Be2 {[%clk 00:54:48]} {[%emt 00:02:40]}
Qa5 {[%clk 00:45:14]} {[%emt 00:03:30]} 16. Qxa5 {[%clk 00:53:23]} {[%emt
00:01:57]} Nxa5 {[%clk 00:45:39]} {[%emt 00:00:05]} 17. Rc1 {[%clk 00:50:52]}
{[%emt 00:03:00]} a6 {[%clk 00:26:53]} {[%emt 00:19:17]} 18. b3 {[%clk
00:38:05]} {[%emt 00:13:17]} Rac8 {[%clk 00:24:25]} {[%emt 00:02:59]} 19. Bb4
{[%clk 00:33:46]} {[%emt 00:04:48]} Nac6 {[%clk 00:24:04]} {[%emt 00:00:51]} 20.
Ba3 {[%clk 00:32:34]} {[%emt 00:01:43]} b5 {[%clk 00:19:49]} {[%emt 00:04:45]}
21. Bb2 {[%clk 00:31:54]} {[%emt 00:01:10]} Nb4 {[%clk 00:18:03]} {[%emt
00:02:15]} 22. a4 {[%clk 00:25:39]} {[%emt 00:06:45]} bxa4 {[%clk 00:12:11]}
{[%emt 00:06:22]} 23. bxa4 {[%clk 00:25:00]} {[%emt 00:01:08]} Rc6 {[%clk
00:09:26]} {[%emt 00:03:16]} 24. Kd2 {[%clk 00:23:46]} {[%emt 00:01:44]} Rgc8
{[%clk 00:08:59]} {[%emt 00:00:57]} 25. Bd3 {[%clk 00:21:55]} {[%emt 00:02:21]}
d4 {[%clk 00:07:39]} {[%emt 00:01:50]} 26. Nd1 {[%clk 00:19:42]} {[%emt
00:02:42]} Rxc1 {[%clk 00:08:03]} {[%emt 00:00:07]} 0-1

[Event "Berliner Meisterschaft 2023"]
[Site "Berlin"]
[Date "2023.04.13"]
[Round "6.8"]
[White "Piz, Dr. Maxim"]
[Black "Georg, Tscheuschner"]
[Result "1-0"]
[TimeControl "90 minutes / 40 moves + 30 minutes + 30 seconds"]
[WhiteFideId "24602981"]
[BlackFideId "12935549"]
[WhiteElo "2158"]
[BlackElo "2185"]

1. Nf3 {[%clk 01:15:31]} {[%emt 00:15:29]} c5 {[%clk 01:29:39]} {[%emt
00:01:21]} 2. c4 {[%clk 01:15:54]} {[%emt 00:00:08]} Nc6 {[%clk 01:29:50]}
{[%emt 00:00:19]} 3. g3 {[%clk 01:16:17]} {[%emt 00:00:07]} g6 {[%clk
01:30:07]} {[%emt 00:00:13]} 4. Bg2 {[%clk 01:16:37]} {[%emt 00:00:10]} Bg7
{[%clk 01:30:32]} {[%emt 00:00:04]} 5. O-O {[%clk 01:16:47]} {[%emt 00:00:21]}
e6 {[%clk 01:30:51]} {[%emt 00:00:11]} 6. Nc3 {[%clk 01:14:39]} {[%emt
00:02:38]} Nge7 {[%clk 01:31:16]} {[%emt 00:00:06]} 7. b3 {[%clk 01:12:32]}
{[%emt 00:02:37]} O-O {[%clk 01:27:57]} {[%emt 00:03:48]} 8. Bb2 {[%clk
01:12:53]} {[%emt 00:00:09]} d5 {[%clk 01:27:48]} {[%emt 00:00:39]} 9. cxd5
{[%clk 01:12:37]} {[%emt 00:00:46]} exd5 {[%clk 01:24:27]} {[%emt 00:03:51]} 10.
Na4 {[%clk 01:11:46]} {[%emt 00:01:22]} Bxb2 {[%clk 01:21:11]} {[%emt
00:03:46]} 11. Nxb2 {[%clk 01:12:12]} {[%emt 00:00:04]} Nf5 {[%clk 01:19:50]}
{[%emt 00:01:50]} 12. Rc1 {[%clk 01:10:45]} {[%emt 00:01:57]} b6 {[%clk
00:57:05]} {[%emt 00:23:15]} 13. Nd3 {[%clk 01:05:53]} {[%emt 00:05:22]} Bb7
{[%clk 00:57:22]} {[%emt 00:00:13]} 14. Nde5 {[%clk 01:05:33]} {[%emt
00:00:51]} Nxe5 {[%clk 00:56:07]} {[%emt 00:01:45]} 15. Nxe5 {[%clk 01:05:55]}
{[%emt 00:00:07]} Re8 {[%clk 00:50:32]} {[%emt 00:06:04]} 16. f4 {[%clk
01:05:41]} {[%emt 00:00:44]} Qe7 {[%clk 00:49:56]} {[%emt 00:01:07]} 17. e3
{[%clk 01:05:36]} {[%emt 00:00:35]} Rad8 {[%clk 00:32:18]} {[%emt 00:18:08]} 18.
Re1 {[%clk 00:58:29]} {[%emt 00:07:36]} f6 {[%clk 00:29:35]} {[%emt 00:03:13]}
19. Nf3 {[%clk 00:58:00]} {[%emt 00:00:59]} d4 {[%clk 00:24:17]} {[%emt
00:05:48]} 20. e4 {[%clk 00:53:38]} {[%emt 00:04:53]} Bxe4 {[%clk 00:22:45]}
{[%emt 00:02:02]} 21. Nh4 {[%clk 00:52:09]} {[%emt 00:01:58]} Qb7 {[%clk
00:12:29]} {[%emt 00:10:47]} 22. Rxe4 {[%clk 00:51:25]} {[%emt 00:01:14]} Rxe4
{[%clk 00:12:54]} {[%emt 00:00:05]} 23. Nxf5 {[%clk 00:51:43]} {[%emt
00:00:12]} gxf5 {[%clk 00:12:19]} {[%emt 00:01:05]} 24. d3 {[%clk 00:52:08]}
{[%emt 00:00:05]} Qe7 {[%clk 00:11:33]} {[%emt 00:01:16]} 25. dxe4 {[%clk
00:52:31]} {[%emt 00:00:07]} fxe4 {[%clk 00:12:01]} {[%emt 00:00:02]} 26. Qg4+
{[%clk 00:49:01]} {[%emt 00:03:59]} Kh8 {[%clk 00:12:27]} {[%emt 00:00:05]} 27.
Qf5 {[%clk 00:49:30]} {[%emt 00:00:02]} Re8 {[%emt 00:04:01]} 28. Re1 {[%clk
00:48:04]} d3 {[%clk 00:10:25]} {[%emt 00:00:56]} 29. Rxe4 {[%clk 00:47:15]}
{[%emt 00:01:19]} d2 {[%clk 00:10:39]} {[%emt 00:00:16]} 30. Qd5 {[%clk
00:47:44]} {[%emt 00:00:01]} Rd8 {[%clk 00:08:05]} {[%emt 00:03:04]} 31. Qxd2
{[%clk 00:48:04]} {[%emt 00:00:09]} Rxd2 {[%clk 00:08:30]} {[%emt 00:00:04]} 32.
Rxe7 {[%clk 00:48:31]} {[%emt 00:00:03]} Rxa2 {[%clk 00:08:56]} {[%emt
00:00:04]} 33. Bd5 {[%clk 00:47:37]} {[%emt 00:01:23]} a6 {[%clk 00:07:33]}
{[%emt 00:01:54]} 34. Rf7 {[%clk 00:46:48]} {[%emt 00:01:18]} Rd2 {[%clk
00:07:32]} {[%emt 00:00:32]} 35. Be6 {[%clk 00:47:02]} {[%emt 00:00:15]} Rd6
{[%clk 00:07:03]} {[%emt 00:00:59]} 36. f5 {[%clk 00:47:24]} {[%emt 00:00:09]}
b5 {[%clk 00:05:47]} {[%emt 00:01:45]} 37. Rxf6 {[%clk 00:47:46]} {[%emt
00:00:07]} Rc6 {[%clk 00:04:31]} {[%emt 00:01:46]} 38. g4 {[%clk 00:46:14]}
{[%emt 00:02:02]} c4 {[%clk 00:02:24]} {[%emt 00:02:38]} 39. bxc4 {[%clk
00:46:37]} {[%emt 00:00:07]} bxc4 {[%clk 00:02:06]} {[%emt 00:00:47]} 40. g5
{[%clk 00:43:39]} {[%emt 00:03:27]} 1-0